Cogmind - Beta 17.1 @@@ ROGUE MODE // 2026.09.03 @ 15:48:36 Player: lxealomych Result: Destroyed by S-10 Pest with Light Assault Rifle Performance ------------- Evolutions (0) 0 Regions Visited (1) 200 Robots Destroyed (18) 90 Value Destroyed (394) 394 Prototype IDs (0) 0 Alien Tech Used (0) 0 Bonus (0) 0 TOTAL SCORE: 684 Bonus ------- None Cogmind --------- Core Integrity 0/250 Matter 279/300 Energy 246/250 System Corruption 0% Temperature Cool (2) Movement Walking (190) Ox1 Location -10/Materials Parts ------- > --- POWER (1) -------- Ion Engine > --- PROPULSION (2) --- Aluminum Leg Aluminum Leg > --- UTILITY (2) ------ Heat Sink Large Storage Unit > --- WEAPON (2) ------- Light Assault Rifle Light Assault Rifle > --- INVENTORY (15) --- Ion Engine Aluminum Leg Compact Wheel Compact Wheel Medium Storage Unit Hacking Suite Hacking Suite Small Laser Light Assault Rifle Light Assault Rifle Grenade Launcher Peak State ------------ > --- POWER ------------ Ion Engine > --- PROPULSION ------- Light Treads Light Treads > --- UTILITY ---------- Heat Sink Large Storage Unit > --- WEAPON ----------- Medium Laser Light Assault Rifle > --- INVENTORY -------- Ion Engine Light Ion Engine Compact Wheel Compact Wheel Medium Storage Unit Hacking Suite Small Laser Grenade Launcher [Rating: 8] Favorites ----------- Power Ion Engine Engine Ion Engine Propulsion Light Treads Treads Light Treads Leg Aluminum Leg Wheel Compact Wheel Utility Large Storage Unit Device Heat Sink Storage Large Storage Unit Weapon Light Assault Rifle Energy Gun Medium Laser Ballistic Gun Light Assault Rifle Build | -11 -10 ------- Run | Yrd Mat Slots Evolved . | . . Power . | . . Propulsion . | . . Utility . | . . Weapon . | . . Parts Attached 17 | 8 9 Power 3 | 1 2 Engine 3 | 1 2 Core . | . . Reactor . | . . Propulsion 6 | 4 2 Treads 2 | 2 . Leg 2 | . 2 Wheel 2 | 2 . Hover . | . . Flight . | . . Utility 3 | 1 2 Device 1 | . 1 Storage 2 | 1 1 Processor . | . . Hackware . | . . Protection . | . . Artifact . | . . Weapon 5 | 2 3 Energy Gun 1 | 1 . Energy Cannon . | . . Ballistic Gun 4 | 1 3 Ballistic Cannon . | . . Launcher . | . . Special Weapon . | . . Impact Weapon . | . . Slashing Weapon . | . . Piercing Weapon . | . . Special Melee Weapon . | . . Unidentified Prototypes . | . . Parts Lost 4 | . 4 Power 1 | . 1 Propulsion 2 | . 2 Utility . | . . Weapon 1 | . 1 Highest Loss Streak 2 | . 2 To Critical Strikes . | . . Average Backups 7 | 2 7 Power . | . . Propulsion 2 | 1 2 Utility 1 | . 1 Weapon 2 | 1 2 Tool/Special . | . . Unused Backups 7 | . 7 Power 1 | . 1 Propulsion 1 | . 1 Utility 3 | . 3 Weapon 2 | . 2 Tool/Special . | . . Average Slot Usage (%) 95 | . 95 Engine 12 | . 12 Treads 21 | . 21 Leg 5 | . 5 Device 12 | . 12 Storage 14 | . 14 Energy Gun 6 | . 6 Ballistic Gun 21 | . 21 Peak Build Rating 8 | 6 8 Average Rating 6 | 4 7 On Entrance 3 | . 6 Avg Prop Armor Cover (%) . | . . Naked Turns . | . . Heaviest Build 29 | 13 29 Greatest Support 40 | 40 40 Greatest Overweight (x) 9 | 1 9 Average Overweight (x) . | . . Largest Inventory Capacity 15 | 8 15 Average Capacity 14 | 7 14 Most Carried 11 | 6 11 Average Carried 7 | 3 7 Final Capacity 15 | 8 15 Final Carried 11 | 4 11 Class Distribution -------------------- 64% | Mutant 35% | Scavenger-Mutant Dominant Class ---------------- Mutant | -10/Materials Resources | -11 -10 ----------- Run | Yrd Mat Matter Collected 433 | 230 203 Remotely . | . . Salvage Created 494 | . 494 Parts 41 | . 41 Haulers Intercepted . | . . Recyclers Shooed . | . . Parts Field Recycled . | . . Retrieved Matter . | . . Parts Self-Destructed . | . . Prevented . | . . Parts Restored . | . . Kills | -11 -10 ------- Run | Yrd Mat Combat Hostiles Destroyed 14 | . 14 Guns 14 | . 14 Classes Destroyed 5 | . 5 Worker 1 | . 1 Operator 2 | . 2 Watcher 1 | . 1 Swarmer 6 | . 6 Grunt 8 | . 8 Best Kill Streak 3 | . 3 Combat Bots Only 3 | . 3 Max Kills in Single Turn 2 | . 2 Gunslinging 1 | . 1 Exploded . | . . Melee . | . . Uniques/NPCs Destroyed . | . . Combat | -11 -10 -------- Run | Yrd Mat Hostile Shots Fired 106 | . 106 Missed 24 | . 24 Hits 82 | . 82 Projectile 82 | . 82 Critical Strikes 2 | . 2 Damage Taken 847 | . 847 Core 251 | . 251 Absorbed by Shields . | . . Core Remaining (%) 100 | 100 . Volleys Fired 75 | . 75 Largest 2 | . 2 Hottest 70 | . 70 Shots Fired 146 | . 146 Gun 146 | . 146 Cannon . | . . Launcher . | . . Special . | . . Kinetic 104 | . 104 Thermal 42 | . 42 Explosive . | . . Electromagnetic . | . . Robot Hit Streak 9 | . 9 Robot Miss Streak 6 | . 6 Penetration Max . | . . Secondary Targets 4 | . 4 Max Gunslinging Chain 1 | . 1 Shots Hit Robots 85 | . 85 Core Hits 35 | . 35 Critical Kills 1 | . 1 Critical Parts Destroyed . | . . Critical Strikes 4 | . 4 Burn 3 | . 3 Destroy 1 | . 1 Melee Attacks . | . . Impact . | . . Slashing . | . . Piercing . | . . Sneak Attacks . | . . Combat Hostiles . | . . Follow-up Attacks . | . . Damage Inflicted 817 | . 817 Guns 817 | . 817 Cannons . | . . Explosions . | . . Melee . | . . Ramming . | . . Kinetic 478 | . 478 Thermal 339 | . 339 Explosive . | . . Electromagnetic . | . . Impact . | . . Slashing . | . . Piercing . | . . Highest Corruption . | . . Average Corruption . | . . Corruption Purged . | . . Corruption Blocked . | . . Overload Shots . | . . Overflow Damage . | . . Projectiles . | . . Explosions . | . . Melee . | . . Knockbacks . | . . Impact . | . . Kinetic . | . . Secondary . | . . Self-Inflicted Damage . | . . Shots . | . . Rammed . | . . Targets Rammed . | . . Kicked . | . . Crushed . | . . Highest Temperature 300 | . 300 Average Temperature 86 | . 86 Received Heat Transfer 342 | . 342 Siege Activations . | . . Martial Activations . | . . Shielding Activations . | . . Robots Disrupted . | . . Combat Hostiles . | . . Robots Corrupted . | . . Combat Hostiles . | . . Parts Fried . | . . Impact Corruptions . | . . Robots Melted . | . . Combat Hostiles . | . . Parts Melted 1 | . 1 Heat Transferred 1221 | . 1221 Parts Sabotaged . | . . Parts Stolen . | . . Parts Stripped . | . . Power Chain Reactions . | . . Alert | -11 -10 ------- Run | Yrd Mat Maximum Alert Level . | . . Low Security (%) 100 | 100 100 Level 1 . | . . Level 2 . | . . Level 3 . | . . Level 4 . | . . Level 5 . | . . High Security . | . . Max Security . | . . Peak Influence 90 | . 90 Initial . | . . Average 29 | . 31 Influence Increases 364 | . 364 Destroy 0b10 Robot/C 280 | . 280 Destroy 0b10 Robot/NC 20 | . 20 Destroy Leader 52 | . 52 Successful Hack 11 | . 11 Destroy Structure 1 | . 1 Influence Decreases 364 | . 364 Time Decay 314 | . 314 Lost Part 30 | . 30 Purge Threat 20 | . 20 Squads Dispatched 2 | . 2 Investigation 1 | . 1 Extermination . | . . Reinforcement 1 | . 1 Assault . | . . Garrison . | . . Intercept . | . . Searches Triggered . | . . Construction Impeded . | . . Haulers Reinforced . | . . Active Scanning Responses . | . . Cargo Convoy Interrupts . | . . Stealth | -11 -10 --------- Run | Yrd Mat Distress Signals 1 | . 1 Communications Jammed . | . . Distress Signals . | . . Times Spotted 26 | . 26 Peak Tracking Total 5 | . 5 Tactical Retreats . | . . Traps | -11 -10 ------- Run | Yrd Mat Traps Triggered . | . . Indirectly . | . . Trap Hack Attempts . | . . Triggered . | . . Disarmed . | . . Reprogrammed . | . . Reused . | . . Traps Extracted . | . . Installed . | . . Triggered . | . . Machines | -11 -10 ---------- Run | Yrd Mat Machines Disabled . | . . Max in Single Turn . | . . Machines Repaired . | . . Machines Dismantled . | . . Machines Sabotaged . | . . Overloaded Fab Kills . | . . Hacking | -11 -10 --------- Run | Yrd Mat Machines Accessed 4 | . 4 Terminals 4 | . 4 Fabricators . | . . Repair Stations . | . . Recycling Units . | . . Scanalyzers . | . . Garrison Access . | . . Total Hacks 13 | . 13 Successful 3 | . 3 Failed 10 | . 10 Catastrophic 3 | . 3 Database Lockouts . | . . Manual 10 | . 10 Terminals 13 | . 13 Fabricators . | . . Repair Stations . | . . Recycling Units . | . . Scanalyzers . | . . Garrison Access . | . . Terminal Hacks 3 | . 3 Robot Analysis 1 | . 1 Terminal Index 1 | . 1 Unreport Threat 1 | . 1 Fabricator Hacks . | . . Repair Station Hacks . | . . Recycling Unit Hacks . | . . Scanalyzer . | . . Garrison Access Hacks . | . . Unauthorized Hacks . | . . Terminals . | . . Fabricators . | . . Repair Stations . | . . Recycling Units . | . . Scanalyzers . | . . Garrison Access . | . . Data Cores Recovered . | . . Used . | . . Hacking Detections 4 | . 4 Full Trace Events 3 | . 3 Feedback Events . | . . Feedback Blocked . | . . Robot Schematics Acquired . | . . Robots Built . | . . Authchips . | . . Time . | . . Total Robot Build Rating . | . . Part Schematics Acquired . | . . Parts Built . | . . Authchips . | . . Time . | . . Total Part Build Rating . | . . Part Studies Acquired . | . . Parts Repaired . | . . Time . | . . Parts Recycled . | . . Recycled Matter . | . . Retrieved Matter . | . . Retrieved Components . | . . Parts Scanalyzed . | . . Part Schematics Acquired . | . . Parts Damaged . | . . Bothacking | -11 -10 ------------ Run | Yrd Mat Used RIF Installer . | . . Robots Hacked . | . . Non-combat . | . . Combat . | . . Robot Hacks Applied . | . . Relay Couplers Released . | . . Fabnet Peak Effective % . | . . Robots Rewired . | . . Allies Hacked . | . . Hacks Repelled . | . . Allies | -11 -10 -------- Run | Yrd Mat Total Allies . | . . Largest Group . | . . Highest-Rated Group . | . . Highest-Rated Ally . | . . Total Orders . | . . Ally Attacks . | . . Total Damage . | . . Kills . | . . Allies Corrupted . | . . Allies Melted . | . . Intel | -11 -10 ------- Run | Yrd Mat Active Infowar (turns) . | . . Robot Analysis Total 1 | . 1 Derelict Logs Recovered . | . . Drone Launches . | . . Drone Recoveries . | . . Exploration | -11 -10 ------------- Run | Yrd Mat Turns Passed 1025 | 72 953 Spaces Moved 463 | 46 417 Core 9 | 6 3 Treads 349 | 18 331 Legs 83 | . 83 Wheels 22 | 22 . Hover . | . . Flight . | . . Fastest Speed 50 | 50 160 Average Speed 164 | 121 169 Slowest Speed 500 | 160 500 Overloaded Moves . | . . Propulsion Burnouts . | . . Robots Hopped . | . . Potential Cave-ins . | . . Cave-ins Triggered . | . . Exploration Rate (%) 35 | 3 67 Regions Visited 1 Branch Regions . Pre-discovered Areas . | . . Known Exits Taken . | . . Unknown Exits Taken 1 | 1 . Scrap Searched . | . . Spaces Dug . | . . Terrain Destroyed . | . . Melee . | . . Projectile . | . . AOE . | . . Terrain Rammed . | . . Walls Destroyed . | . . Machines Disabled . | . . Actions | -11 -10 --------- Run | Yrd Mat Total 597 | 59 538 Wait 29 | . 29 Move 462 | 45 417 Hop . | . . Pick Up 12 | 6 6 Fast Attach 9 | 4 5 Attach 3 | 2 1 Detach . | . . Swap 5 | 2 3 Drop 2 | . 2 Fire 75 | . 75 Melee . | . . Ram . | . . Kick . | . . Crush . | . . Escape Stasis . | . . Rewire . | . . Trap . | . . Miscellaneous . | . . Route ------- -11/Scrapyard -10/Materials (discovered 5 exits: [*Mat x2] / [*Min x2] / [*Sub]) History --------- Turn | Location | Event 2 | -11/Scrapyard | Met Revision 17 24 | -11/Scrapyard | Discovered new exit (range 14) 73 | -11/Scrapyard | Entered Materials 85 | -10/Materials | Discovered new exit (range 3) 167 | -10/Materials | Core integrity fell below 50% 273 | -10/Materials | Discovered new exit (range 10) 312 | -10/Materials | Build established: Mutant 313 | -10/Materials | Discovered new exit (range 10) 533 | -10/Materials | Discovered new exit (range 16) 626 | -10/Materials | Core integrity fell below 20% 877 | -10/Materials | Discovered new exit (range 5) 954 | -10/Materials | Build established: Scavenger-Mutant 1026 | -10/Materials | Destroyed by S-10 Pest with Light Assault Rifle Last Messages --------------- Tier: 2 Some Packrat variants have become quite capable in their own right, evolved to rip hostiles apart specifically to use pieces for self-repair, then discard any remains. Surprisingly they are resistant to many forms of damage. 00771_ ALERT: Suspicious activity at Terminal M002. Dispatching Investigation squad. 00798_ Lgt. Treads destroyed. 00801_ G-34 Mercenary destroyed. 00806_ G-34 Mercenary suffers critical hit (Destroy). 00806_ G-34 Mercenary destroyed. 00826_ Acquired Aluminum Leg. 00828_ Acquired 20 matter. 00838_ Acquired Aluminum Leg. 00857_ O-16 Technician: "IFF HANDSHAKE FAILED. SECURING TERMINAL." 00877_ EXIT=FOUND 00894_ O-16 Technician destroyed. 00899_ Acquired Hacking Suite. 00900_ Acquired 13 matter. 00961_ K-01 Serf cleans the Processing Tank. Map ----- +----------------------------------------------------+ | ??????????????????????????????????????????# + | | ??????????????????????????????????????????# # | | ??????????????????????????????????????????# # | | ??????????????????????????????????????????# ##### | | ??????????????????????????????????????????# #???#| | | ??????????????????????????????????????????# #???# | | ??????????????????????????????????????????# #???## | | ??????????????????????????????############# #????? | | ??????????????????????????????# # ###### | | ???????????????#? ????????????# # % | | ??????????????""" ???#????????# # #### | | ??????????????" #??##??### # ######??# | | ?????????????#"| #??#<##X##!! # #???????#! | | ?????????????#"" < #?## #!= # #???????## | | ?????????????#"! #?# #! ==#% #????????## | | ??????????????" #?# # =%*/% ########### | | ???????????????"" #?# # *=# ## | | ?############???# #???? ###### ## | | ?# ##### w#######+####### # """ | | ## % # """ | | % T + """ " | | ## """ """ """ "" % = # """ T | | ?# """ """ """ T"ss######### # """ " | | ?# """ """ """ ""sk# ####### | | ## """ """ """ # #?????########## | | """ """ """ @# #??????????????? | | k k +* #??????????????? | | k #" """#??????????????? | | ###/###### #T """#??????????????? | | # %= ## #" """#??????????????? | | # ## """"" # #??????????????? | | ^ ^^# ## """"" %#########??????????????? | | # ## """"" =##?????????????????????? | | # =## %=#?????????????????????? | | # * ## % #?????????????????????? | | ##### + #?????????????????????? | | #???# ! = ######## #???################??? | | #???# #??????# #???# #??? | | #???# #?????####+####### < #??? | | #???# #?????# + #??? | | #???#########?????# """ ####+########+###???? | | #?????????????????# """ !# #??????????? | | #+##????????????????# """ #""" #??????????? | | #????????????????# #""" #??????????? | | " #????????????????# """ #""" #??????????? | | " #????????????????# """ # #??????????? | | " #????????????????# """ #""" #??????????? | | " #????????????????# #""" #??????????? | | " #????????????????##########""" #??????????? | | #?????????????????????????# #??????????? | +----------------------------------------------------+ Best States ------------- Heat Dissipation 35 Energy Generation 10 Energy Capacity 250 Matter Stores 300 Matter Capacity 300 Sight Range 16 Terrain Scan Density 10 Evasion (%) 40 Recoil Reduction 2 Item Schematics ----------------- None Robot Schematics ------------------ None Fabricated ------------ Nothing Repaired ---------- Nothing Studied --------- None Alien Tech Used ----------------- None Achievements -------------- None Challenges ------------ None Game ------ Seed SurgeKineticRecalibrator Manual? 0 Play Time 00:13:27 Cumulative 38.4 hours Start 2026.09.03 @ 15:39:21 End 2026.09.03 @ 15:48:36 Sessions 1 Manual Loads 0 Difficulty Rogue Special Mode None Game No. 43 Rogue 40 Adventurer 3 Explorer 0 Win Type - Total 0 Types 0/0/0/0/0/0/0/0/0/0 Lore% 19 Gallery% 29 Achievement% 24 Wizard Run 0 Options --------- Layout 0 ASCII 0 Keyboard 0 Movement Numpad Keybinds 0 Fullscreen 1 Font 18/SmallcapsGlow Map View 76x50 Zoom Use 0% Tactical HUD 1 Map Filters NONE Filters NONE Steam 1 RUN: 03995283-48b0-4070-ac15-1f90d98fa1f8